fUSD/lending_fUSD_20241209
["ID","MTS","AMOUNT","RATE_DAILY","PERIOD"]
[344662151,1733702569774,150.17,0.00017348,30]
[344662186,1733703031884,-511.1,0.00015337,2]
[344662187,1733703031894,-250.0,0.00017109,2]
[344662188,1733703031904,-175.38,0.00017157,2]
[344662189,1733703031914,-300.0,0.00017254,2]
[344662190,1733703031923,-13967.52,0.00017255,2]
[344662191,1733703031934,-648.00427728,0.00017255,2]
[344662192,1733703031946,-1549.89572272,0.00017255,2]
[344662193,1733703031955,-1000.0,0.00017262,2]
[344662194,1733703031963,-233.3,0.00017266,2]
[344662195,1733703031973,-150.0,0.00017279,2]
[344662196,1733703031982,-511.1,0.00017601,2]
[344662197,1733703031991,-317.13,0.00017735,2]
[344662198,1733703032000,-317.13,0.0001774,2]
[344662199,1733703032009,-317.13,0.00017744,2]
[344662200,1733703032018,-317.13,0.00017749,2]
[344662201,1733703032027,-150.99,0.00017749,2]
[344662202,1733703032036,-402.99,0.00017749,2]
[344662203,1733703032045,-317.13,0.00017754,2]
[344662204,1733703032054,-317.13,0.00017758,2]
[344662205,1733703032063,-1506.13,0.00017758,2]
[344662206,1733703032072,-317.13,0.00017763,2]
[344662207,1733703032081,-317.13,0.00017768,2]
[344662208,1733703032090,-317.13,0.00017772,2]
[344662209,1733703032099,-168.39,0.00017774,2]
[344662210,1733703032108,-317.13,0.00017777,2]
[344662211,1733703032117,-317.13,0.00017782,2]
[344662212,1733703032129,-317.13,0.00017786,2]
[344662213,1733703032138,-317.13,0.00017791,2]
[344662214,1733703032147,-317.13,0.00017795,2]
[344662215,1733703032157,-317.13,0.000178,2]
[344662216,1733703032167,-317.13,0.00017805,2]
[344662217,1733703032176,-300.0,0.00017805,2]
[344662218,1733703032185,-317.13,0.00017809,2]
[344662219,1733703032194,-317.13,0.00017814,2]
[344662220,1733703032204,-317.13,0.00017819,2]
[344662221,1733703032213,-250.0,0.00017819,2]
[344662222,1733703032223,-317.13,0.00017823,2]
[344662223,1733703032232,-250.0,0.00017853,2]
[344662224,1733703032241,-276.913,0.0001786,2]
[344662225,1733703032250,-659.0,0.0001797,2]
[344662226,1733703032259,-1007.28,0.00018206,2]
[344662227,1733703032268,-991.75,0.00018206,2]
[344662228,1733703032278,-1016.41,0.00018206,2]
[344662229,1733703032287,-989.44,0.00018206,2]
[344662230,1733703032296,-1004.3,0.00018206,2]
[344662231,1733703032305,-1017.51,0.00018206,2]
[344662232,1733703032314,-988.16,0.00018206,2]
[344662233,1733703032323,-767.50956473,0.00018206,2]
[344662234,1733703032335,-230.87043527,0.00018206,2]
[344662235,1733703032344,-1016.16,0.00018319,2]
[344662236,1733703032354,-490.495005,0.00018424,2]
[344662237,1733703032363,-1009.85,0.0001847,2]
[344662238,1733703032374,-1007.24,0.00018492,2]
[344662239,1733703032383,-1148.68461024,0.00018518,2]
[344662240,1733703032392,-996.71,0.00018525,2]
[344662241,1733703032402,-734.818,0.00018532,2]
[344662242,1733703032411,-150.0,0.00018532,2]
[344662243,1733703032421,-200.0,0.00018544,2]
[344662244,1733703032430,-511.28338925,0.00018544,2]
[344662245,1733703032439,-1211.93099674,0.00018544,2]
[344662246,1733703032448,-1387.92574225,0.00018545,2]
[344662247,1733703032463,-233.01778753,0.00018545,2]
[344662248,1733703032472,-200.0,0.00018545,2]
[344662249,1733703032481,-1387.92574225,0.00018546,2]
[344662250,1733703032490,-200.0,0.00018546,2]
[344662251,1733703032499,-681.71118567,0.00018546,2]
[344662252,1733703032509,-200.0,0.00018547,2]
[344662253,1733703032518,-1615.90799565,0.00018547,2]
[344662254,1733703032527,-383.46254194,0.00018547,2]
[344662255,1733703032537,-1211.93099674,0.00018548,2]
[344662256,1733703032547,-200.0,0.00018548,2]
[344662257,1733703032556,-310.69038337,0.00018548,2]
[344662258,1733703032565,-287.59690645,0.00018548,2]
[344662259,1733703032575,-287.59690645,0.00018548,2]
[344662260,1733703032584,-287.59690645,0.00018549,2]
[344662261,1733703032594,-511.28338925,0.0001855,2]
[344662262,1733703032604,-215.69767984,0.0001855,2]
[344662263,1733703032613,-200.0,0.00018551,2]
[344662264,1733703032622,-310.69038337,0.00018551,2]
[344662265,1733703032635,-310.69038337,0.00018552,2]
[344662266,1733703032644,-287.59690645,0.00018552,2]
[344662267,1733703032653,-200.0,0.00018553,2]
[344662268,1733703032662,-1387.92574225,0.00018553,2]
[344662269,1733703032671,-200.0,0.00018553,2]
[344662270,1733703032681,-681.71118567,0.00018553,2]
[344662271,1733703032915,-200.0,0.00018554,2]
[344662272,1733703032931,-200.0,0.00018554,2]
[344662273,1733703032940,-233.01778753,0.00018555,2]
[344662274,1733703032949,-511.28338925,0.00018555,2]
[344662275,1733703032959,-200.0,0.00018555,2]
[344662276,1733703032968,-200.0,0.00018555,2]
[344662277,1733703032977,-1615.90799565,0.00018556,2]
[344662278,1733703032986,-200.0,0.00018556,2]
[344662279,1733703032996,-310.69038337,0.00018559,2]
[344662280,1733703033005,-1211.93099674,0.0001856,2]
[344662281,1733703033014,-200.0,0.0001856,2]
[344662282,1733703033024,-233.01778753,0.0001856,2]
[344662283,1733703033033,-511.28338925,0.0001856,2]
[344662284,1733703033042,-200.0,0.00018561,2]
[344662285,1733703033052,-681.71118567,0.00018562,2]
[344662286,1733703033061,-1211.93099674,0.00018563,2]
[344662287,1733703033070,-200.0,0.00018564,2]
[344662288,1733703033080,-200.0,0.00018564,2]
[344662289,1733703033089,-383.46254194,0.00018565,2]
[344662290,1733703033098,-200.0,0.00018566,2]
[344662291,1733703033108,-908.94824755,0.00018566,2]
[344662292,1733703033118,-233.01778753,0.00018566,2]
[344662293,1733703033131,-908.94824755,0.00018567,2]
[344662294,1733703033141,-200.0,0.00018568,2]
[344662295,1733703033150,-310.69038337,0.00018571,2]
[344662296,1733703033160,-200.0,0.00018572,2]
[344662297,1733703033170,-215.69767984,0.00018573,2]
[344662298,1733703033179,-383.46254194,0.00018574,2]
[344662299,1733703033189,-1387.92574225,0.00018575,2]
[344662300,1733703033199,-908.94824755,0.00018576,2]
[344662301,1733703033209,-310.69038337,0.00018576,2]
[344662302,1733703033218,-200.0,0.00018576,2]
[344662303,1733703033228,-215.69767984,0.00018577,2]
[344662304,1733703033237,-1211.93099674,0.00018577,2]
[344662305,1733703033247,-233.01778753,0.00018577,2]
[344662306,1733703033256,-383.46254194,0.00018577,2]
[344662307,1733703033266,-200.0,0.00018578,2]
[344662308,1733703033275,-908.94824755,0.00018579,2]
[344662309,1733703033285,-681.71118567,0.00018579,2]
[344662310,1733703033294,-511.28338925,0.00018579,2]
[344662311,1733703033303,-1615.90799565,0.0001858,2]
[344662312,1733703033313,-908.94824755,0.00018581,2]
[344662313,1733703033323,-200.0,0.00018581,2]
[344662314,1733703033332,-200.0,0.00018581,2]
[344662315,1733703033341,-238.85672805,0.00018581,2]
[344662316,1733703034023,-973.07426869,0.00018581,2]
[344662317,1733703034033,-908.94824755,0.00018582,2]
[344662318,1733703034044,-287.59690645,0.00018583,2]
[344662319,1733703034054,-200.0,0.00018583,2]
[344662320,1733703034066,-1615.90799565,0.00018583,2]
[344662321,1733703034077,-1387.92574225,0.00018583,2]
[344662322,1733703034087,-200.0,0.00018584,2]
[344662323,1733703034097,-215.69767984,0.00018584,2]
[344662324,1733703034107,-1387.92574225,0.00018585,2]
[344662325,1733703034116,-200.0,0.00018585,2]
[344662326,1733703034128,-200.0,0.00018586,2]
[344662327,1733703034139,-200.0,0.00018587,2]
[344662328,1733703034148,-200.0,0.00018588,2]
[344662329,1733703034158,-215.69767984,0.00018588,2]
[344662330,1733703034169,-287.59690645,0.00018589,2]
[344662331,1733703034179,-2145.286,0.00018589,2]
[344662332,1733703034188,-166.131,0.00018589,2]
[344662333,1733703034198,-150.0,0.0001859,2]
[344662334,1733703034208,-200.0,0.00018591,2]
[344662335,1733703034218,-383.46254194,0.00018593,2]
[344662336,1733703034229,-233.01778753,0.00018593,2]
[344662337,1733703034239,-1615.90799565,0.00018593,2]
[344662338,1733703034249,-1615.90799565,0.00018594,2]
[344662339,1733703034258,-200.0,0.00018594,2]
[344662340,1733703034268,-681.71118567,0.00018594,2]
[344662341,1733703034278,-200.0,0.00018595,2]
[344662342,1733703034288,-200.0,0.00018595,2]
[344662343,1733703034298,-200.0,0.00018595,2]
[344662344,1733703034307,-200.0,0.00018596,2]
[344662345,1733703034318,-200.0,0.00018596,2]
[344662346,1733703034328,-200.0,0.00018597,2]
[344662347,1733703034339,-200.0,0.00018597,2]
[344662348,1733703034348,-681.71118567,0.00018597,2]
[344662349,1733703034358,-511.28338925,0.00018598,2]
[344662350,1733703034369,-200.0,0.00018598,2]
[344662351,1733703034381,-200.0,0.00018598,2]
[344662352,1733703034392,-383.46254194,0.00018599,2]
[344662353,1733703034402,-215.69767984,0.000186,2]
[344662354,1733703034412,-264.4841,0.000186,2]
[344662355,1733703034421,-884.9268,0.000186,2]
[344662356,1733703034430,-200.0,0.000186,2]
[344662357,1733703034440,-1253.0,0.000186,2]
[344662358,1733703034450,-991.39,0.00018646,2]
[344662359,1733703034463,-649.7634,0.00018699,2]
[344662360,1733703034473,-9291.278,0.000187,2]
[344662361,1733703034483,-143516.7,0.000187,2]
[344662362,1733703034492,-12793.6794,0.000187,2]
[344662363,1733703034503,-500.0,0.000187,2]
[344662364,1733703034513,-500.0,0.00018706,2]
[344662365,1733703034523,-500.0,0.00018706,2]
[344662366,1733703034535,-500.0,0.00018706,2]
[344662367,1733703034545,-500.0,0.00018706,2]
[344662368,1733703034556,-330.8697,0.00018706,2]
[344662369,1733703034565,-1000.0,0.00018706,2]
[344662370,1733703034575,-1000.0,0.00018706,2]
[344662371,1733703034585,-287.9735,0.00018706,2]
[344662372,1733703034595,-500.0,0.00018773,2]
[344662373,1733703034604,-1970.6206069,0.00018789,2]
[344662374,1733703034614,-8194.57,0.00018799,2]
[344662375,1733703034627,-780.2,0.00018799,2]
[344662376,1733703034638,-502.0,0.000188,2]
[344662377,1733703034648,-989.48,0.000188,2]
[344662378,1733703034658,-41694.30177476,0.000188,2]
[344662379,1733703034671,-198967.90229116,0.000188,2]
[344662380,1733703034691,-630.43893277,0.000188,2]
[344662381,1733703034723,-1529.17690349,0.000188,2]
[344662382,1733703034735,-2874.7444593,0.000188,2]
[344662383,1733703034778,-6912.95263085,0.000188,2]
[344662384,1733703034790,-1607.71016559,0.000188,2]
[344662388,1733703037722,-11266.82352357,0.000188,2]
[344662389,1733703037776,-584241.29330751,0.000188,2]
[344662390,1733703037788,-27173.61906512,0.000188,2]
[344662391,1733703037798,-14688.0730887,0.000188,2]
[344662392,1733703037807,-457335.64686368,0.000188,2]
[344662393,1733703037884,-10502.000002,0.000188,2]
[344662394,1733703037935,-2464.68861544,0.000188,2]
[344662395,1733703037948,-722.130003,0.000188,2]
[344662396,1733703037959,-101059.99999999,0.000188,2]
[344662397,1733703037990,-10212.54948447,0.000188,2]
[344662398,1733703038001,-28658.96554826,0.000188,2]
[344662399,1733703038043,-2544.61658396,0.000188,2]
[344662407,1733703039783,-48201.09323976,0.000188,2]
[344662408,1733703039883,-53929.49611462,0.000188,2]
[344662409,1733703039895,-20025.0,0.000188,2]
[344662410,1733703039934,-1510.89699224,0.000188,2]
[344662411,1733703039946,-383716.95189997,0.000188,2]
[344662427,1733703042911,-2892.96022014,0.000188,2]
[344662428,1733703042932,-9549.34036426,0.000188,2]
[344662429,1733703042964,-520.1,0.000188,2]
[344662430,1733703042976,-96678.43991783,0.000188,2]
[344662431,1733703043019,-293.59787835,0.000188,2]
[344662432,1733703043030,-3208.038,0.000188,2]
[344662433,1733703043232,-5545.31356917,0.000188,2]
[344662485,1733703045743,-2849.18986005,0.000188,2]
[344662487,1733703045754,-28467.38999981,0.000188,2]
[344662497,1733703045850,-309180.8346928,0.000188,2]
[344662520,1733703046068,-2983.4690071,0.000188,2]
[344662526,1733703046116,-15751.1168097,0.000188,2]
[344662788,1733703448691,1259.40122957,0.00025,120]
[344662789,1733703466064,2958.13087685,0.00025,120]
[344662790,1733703522216,2975.26724987,0.00025,120]
[344662791,1733703565512,400000.0,0.00025,120]
[344662792,1733703593490,25781.78,0.00025,120]
[344662793,1733703633975,500.0,0.00025,120]
[344662794,1733703634196,500.0,0.00025,120]
[344662795,1733703634507,500.0,0.00025,120]
[344662796,1733703634644,500.0,0.00025,120]
[344662797,1733703635218,500.0,0.00025,120]
[344662798,1733703635665,2063.42,0.00025,120]
[344662799,1733703636471,2157.0,0.00025,120]
[344662800,1733703636820,12661.81,0.00025,120]
[344662801,1733703636909,1508.57,0.00025,120]
[344662802,1733703637427,1435.93,0.00025,120]
[344662803,1733703638005,517.97275971,0.00025,120]
[344662804,1733703639000,500.0,0.00025,120]
[344662805,1733703639079,500.0,0.00025,120]
[344662806,1733703640693,500.0,0.00025,120]
[344662807,1733703640926,500.0,0.00025,120]
[344662808,1733703640985,500.0,0.00025,120]
[344662809,1733703641692,500.0,0.00025,120]
[344662810,1733703642281,515.01,0.00025,120]
[344662811,1733703642450,500.0,0.00025,120]
[344662812,1733703642818,500.0,0.00025,120]
[344662813,1733703642866,31517.96,0.00025,120]
[344662814,1733703642972,500.0,0.00025,120]
[344662815,1733703644683,500.0,0.00025,120]
[344662816,1733703645150,500.0,0.00025,120]
[344662817,1733703645358,1021.55,0.00025,120]
[344662818,1733703645512,500.0,0.00025,120]
[344662819,1733703645557,500.0,0.00025,120]
[344662820,1733703645590,500.0,0.00025,120]
[344662821,1733703645918,2072.81,0.00025,120]
[344662822,1733703646119,500.0,0.00025,120]
[344662823,1733703646382,500.0,0.00025,120]
[344662824,1733703646561,500.0,0.00025,120]
[344662825,1733703646653,500.0,0.00025,120]
[344662826,1733703646895,500.0,0.00025,120]
[344662827,1733703647016,500.0,0.00025,120]
[344662828,1733703647146,500.0,0.00025,120]
[344662829,1733703647322,500.0,0.00025,120]
[344662830,1733703647434,500.0,0.00025,120]
[344662831,1733703647517,500.0,0.00025,120]
[344662832,1733703648803,500.0,0.00025,120]
[344662833,1733703650102,741.39,0.00025,120]
[344662834,1733703650336,500.0,0.00025,120]
[344662835,1733703650397,500.0,0.00025,120]
[344662836,1733703650629,500.0,0.00025,120]
[344662837,1733703650670,584.63984788,0.00025,120]
[344662838,1733703651201,812.44,0.00025,120]
[344662839,1733703651263,5656.24,0.00025,120]
[344662840,1733703651791,500.0,0.00025,120]
[344662841,1733703652917,500.0,0.00025,120]
[344662842,1733703652988,500.0,0.00025,120]
[344662843,1733703653253,500.0,0.00025,120]
[344662844,1733703653322,500.0,0.00025,120]
[344662845,1733703653413,1062.55,0.00025,120]
[344662846,1733703653615,150.0,0.00025,120]
[344662847,1733703654175,500.0,0.00025,120]
[344662848,1733703655469,500.0,0.00025,120]
[344662849,1733703655587,5700.5,0.00025,120]
[344662850,1733703655763,898.13,0.00025,120]
[344662851,1733703655954,500.0,0.00025,120]
[344662852,1733703656094,500.0,0.00025,120]
[344662853,1733703656210,1224.89,0.00025,120]
[344662854,1733703656575,6248.42,0.00025,120]
[344662855,1733703656642,500.0,0.00025,120]
[344662856,1733703658503,500.0,0.00025,120]
[344662857,1733703658603,29645.46,0.00025,120]
[344662858,1733703659098,500.0,0.00025,120]
[344662859,1733703660721,7436.67,0.00025,120]
[344662860,1733703660986,1069.52,0.00025,120]
[344662861,1733703661200,500.0,0.00025,120]
[344662862,1733703662208,1000.0,0.00025,120]
[344662863,1733703662745,500.0,0.00025,120]
[344662864,1733703662901,500.0,0.00025,120]
[344662865,1733703663570,500.0,0.00025,120]
[344662866,1733703664487,808.75,0.00025,120]
[344662867,1733703664942,500.0,0.00025,120]
[344662868,1733703665239,335.49958987,0.00025,120]
[344662869,1733703665307,501.24477742,0.00025,120]
[344662870,1733703665710,500.0,0.00025,120]
[344662871,1733703666335,1024.89,0.00025,120]
[344662872,1733703667026,500.0,0.00025,120]
[344662873,1733703667325,1332.12,0.00025,120]
[344662874,1733703667484,500.29224252,0.00025,120]
[344662875,1733703667825,500.0,0.00025,120]
[344662876,1733703668093,2469.26,0.00025,120]
[344662877,1733703668684,500.0,0.00025,120]
[344662878,1733703668881,500.39,0.00025,120]
[344662879,1733703669101,867.56,0.00025,120]
[344662880,1733703669421,500.0,0.00025,120]
[344662881,1733703671355,558.91,0.00025,120]
[344662882,1733703671562,500.0,0.00025,120]
[344662883,1733703671628,1803.79,0.00025,120]
[344662884,1733703672399,500.0,0.00025,120]
[344662885,1733703672537,500.0,0.00025,120]
[344662886,1733703672974,1064.64,0.00025,120]
[344662887,1733703673390,500.3232113,0.00025,120]
[344662888,1733703673740,1104.51,0.00025,120]
[344662889,1733703673840,500.0,0.00025,120]
[344662890,1733703673929,500.0,0.00025,120]
[344662891,1733703674880,500.0,0.00025,120]
[344662892,1733703674918,500.0,0.00025,120]
[344662893,1733703675976,1435.34,0.00025,120]
[344662894,1733703676176,923.31,0.00025,120]
[344662895,1733703676893,500.0,0.00025,120]
[344662896,1733703676967,1264.9,0.00025,120]
[344662897,1733703677135,500.0,0.00025,120]
[344662898,1733703677235,526.99,0.00025,120]
[344662899,1733703677277,500.0,0.00025,120]
[344662900,1733703677321,796.08,0.00025,120]
[344662901,1733703677377,500.0,0.00025,120]
[344662902,1733703677419,500.0,0.00025,120]
[344662903,1733703678608,521.87,0.00025,120]
[344662904,1733703678880,500.52268099,0.00025,120]
[344662905,1733703680276,500.0,0.00025,120]
[344662906,1733703680761,500.0,0.00025,120]
[344662907,1733703680860,500.0,0.00025,120]
[344662908,1733703680916,500.0,0.00025,120]
[344662909,1733703680953,2533.5,0.00025,120]
[344662910,1733703682055,500.0,0.00025,120]
[344662911,1733703682102,500.0,0.00025,120]
[344662912,1733703683101,587.50804194,0.00025,120]
[344662913,1733703683590,500.0,0.00025,120]
[344662914,1733703684267,687.6,0.00025,120]
[344662915,1733703684370,8737.22,0.00025,120]
[344662916,1733703684610,500.0,0.00025,120]
[344662917,1733703684824,500.0,0.00025,120]
[344662918,1733703684949,500.0,0.00025,120]
[344662919,1733703685210,500.0,0.00025,120]
[344662920,1733703685269,500.0,0.00025,120]
[344662921,1733703685558,500.0,0.00025,120]
[344662922,1733703685699,500.0,0.00025,120]
[344662923,1733703686630,500.0,0.00025,120]
[344662924,1733703686878,500.0,0.00025,120]
[344662925,1733703687299,500.0,0.00025,120]
[344662926,1733703687404,500.0,0.00025,120]
[344662927,1733703687649,500.0,0.00025,120]
[344662928,1733703687814,500.0,0.00025,120]
[344662929,1733703687989,500.0,0.00025,120]
[344662930,1733703689700,500.0,0.00025,120]
[344662931,1733703690035,2173.38,0.00025,120]
[344662932,1733703690483,748.21,0.00025,120]
[344662933,1733703691110,6775.93,0.00025,120]
[344662934,1733703691294,2590.61,0.00025,120]
[344662935,1733703691470,500.0,0.00025,120]
[344662936,1733703691776,500.0,0.00025,120]
[344662937,1733703691850,500.0,0.00025,120]
[344662938,1733703691972,1117.25,0.00025,120]
[344662939,1733703692897,1472.87,0.00025,120]
[344662940,1733703692996,1117.25,0.00025,120]
[344662941,1733703693115,1117.25,0.00025,120]
[344662942,1733703693177,1117.25,0.00025,120]
[344662943,1733703693425,1117.25,0.00025,120]
[344662944,1733703693486,1117.25,0.00025,120]
[344662945,1733703693587,1117.25,0.00025,120]
[344662946,1733703693842,1117.25,0.00025,120]
[344662947,1733703694121,1117.25,0.00025,120]
[344662948,1733703694371,1117.25,0.00025,120]
[344662949,1733703694563,500.0,0.00025,120]
[344662950,1733703694603,500.0,0.00025,120]
[344662951,1733703694639,1117.25,0.00025,120]
[344662952,1733703694894,1117.25,0.00025,120]
[344662953,1733703695176,1117.25,0.00025,120]
[344662954,1733703695458,1117.25,0.00025,120]
[344662955,1733703695753,1117.25,0.00025,120]
[344662956,1733703696054,1117.25,0.00025,120]
[344662957,1733703696217,178.69087303,0.00025,120]
[344662958,1733703696340,1117.25,0.00025,120]
[344662959,1733703696622,1117.25,0.00025,120]
[344662960,1733703696710,8250.23,0.00025,120]
[344662961,1733703697296,1117.25,0.00025,120]
[344662962,1733703697369,1117.25,0.00025,120]
[344662963,1733703697406,500.0,0.00025,120]
[344662964,1733703697469,987.45,0.00025,120]
[344662965,1733703697505,1117.25,0.00025,120]
[344662966,1733703697679,1117.25,0.00025,120]
[344662967,1733703697935,1117.25,0.00025,120]
[344662968,1733703698202,1117.47646856,0.00025,120]
[344662969,1733703699177,500.0,0.00025,120]
[344662970,1733703699249,500.0,0.00025,120]
[344662971,1733703699347,500.0,0.00025,120]
[344662972,1733703699827,704.96,0.00025,120]
[344662973,1733703700835,501.76627474,0.00025,120]
[344662974,1733703700937,772.83,0.00025,120]
[344662975,1733703701353,600.37,0.00025,120]
[344662976,1733703702053,3867.74,0.00025,120]
[344662977,1733703702459,500.0,0.00025,120]
[344662978,1733703702743,500.0,0.00025,120]
[344662979,1733703703775,500.0,0.00025,120]
[344662980,1733703703854,500.0,0.00025,120]
[344662981,1733703705575,1510.65,0.00025,120]
[344662982,1733703705754,500.0,0.00025,120]
[344662983,1733703705792,500.0,0.00025,120]
[344662984,1733703705898,500.0,0.00025,120]
[344662985,1733703706397,500.0,0.00025,120]
[344662986,1733703706511,1168.72,0.00025,120]
[344662987,1733703706743,500.0,0.00025,120]
[344662988,1733703709160,500.0,0.00025,120]
[344662989,1733703709502,500.0,0.00025,120]
[344662990,1733703709614,500.0,0.00025,120]
[344662991,1733703709925,500.0,0.00025,120]
[344662992,1733703710044,500.0,0.00025,120]
[344662993,1733703710167,500.0,0.00025,120]
[344662994,1733703710345,2787.37,0.00025,120]
[344662995,1733703710465,500.0,0.00025,120]
[344662996,1733703710722,500.0,0.00025,120]
[344662997,1733703711225,11739.81,0.00025,120]
[344662998,1733703711293,500.0,0.00025,120]
[344662999,1733703711405,500.0,0.00025,120]
[344663000,1733703711444,500.0,0.00025,120]
[344663001,1733703711546,932.97,0.00025,120]
[344663002,1733703711582,500.0,0.00025,120]
[344663003,1733703711818,500.0,0.00025,120]
[344663004,1733703712399,500.0,0.00025,120]
[344663005,1733703712449,500.0,0.00025,120]
[344663006,1733703712707,500.0,0.00025,120]
[344663007,1733703712793,500.0,0.00025,120]
[344663008,1733703712884,500.0,0.00025,120]
[344663009,1733703713036,500.0,0.00025,120]
[344663010,1733703713124,6691.46,0.00025,120]
[344663011,1733703713228,500.0,0.00025,120]
[344663012,1733703713464,500.0,0.00025,120]
[344663013,1733703713506,469.4144816,0.00025,120]
[344663014,1733703713721,500.0,0.00025,120]
[344663015,1733703714508,626.55,0.00025,120]
[344663016,1733703715447,500.0,0.00025,120]
[344663017,1733703717479,500.0,0.00025,120]
[344663018,1733703718035,6310.56,0.00025,120]
[344663019,1733703718185,153.45391408,0.00025,120]
[344663020,1733703718748,533.91,0.00025,120]
[344663021,1733703719174,500.0,0.00025,120]
[344663022,1733703719345,632.92,0.00025,120]
[344663023,1733703719580,500.0,0.00025,120]
[344663024,1733703719638,500.0,0.00025,120]
[344663025,1733703720773,500.0,0.00025,120]
[344663026,1733703721165,1125.55,0.00025,120]
[344663027,1733703721774,500.0,0.00025,120]
[344663028,1733703722043,6569.67,0.00025,120]
[344663029,1733703722532,1612.87,0.00025,120]
[344663030,1733703722809,864.44,0.00025,120]
[344663031,1733703723968,500.0,0.00025,120]
[344663032,1733703724278,1944.41,0.00025,120]
[344663033,1733703725344,4492.75,0.00025,120]
[344663034,1733703727483,500.0,0.00025,120]
[344663035,1733703727525,500.0,0.00025,120]
[344663036,1733703728331,500.0,0.00025,120]
[344663037,1733703728440,500.0,0.00025,120]
[344663038,1733703729150,500.0,0.00025,120]
[344663039,1733703730090,500.0,0.00025,120]
[344663040,1733703730537,500.0,0.00025,120]
[344663041,1733703730959,6556.68,0.00025,120]
[344663042,1733703731532,836.96,0.00025,120]
[344663043,1733703732313,1471.27,0.00025,120]
[344663044,1733703732594,3644.81,0.00025,120]
[344663045,1733703732775,500.0,0.00025,120]
[344663046,1733703733234,500.0,0.00025,120]
[344663047,1733703733684,11212.88,0.00025,120]
[344663048,1733703734560,441.61870115,0.00025,120]
[344663049,1733703734859,502.45810384,0.00025,120]
[344663050,1733703735041,500.0,0.00025,120]
[344663051,1733703736259,953.11,0.00025,120]
[344663052,1733703736421,500.0,0.00025,120]
[344663053,1733703736590,500.0,0.00025,120]
[344663054,1733703736875,645.41,0.00025,120]
[344663055,1733703737393,500.0,0.00025,120]
[344663056,1733703738456,500.0,0.00025,120]
[344663057,1733703740329,500.0,0.00025,120]
[344663058,1733703740368,680.92,0.00025,120]